{"text_format":"1","workbook":"xlsx","n_sheets":12,"sheets":["Persepsional & NGB","A","S1","S2","S3","M1","M2","M3","M4","M5","DYS","Keterangan"],"not_rendered":{"charts":0,"images":1,"macros":1,"external_links":0,"defined_names":2,"comments":0,"pivot_tables":0},"unopened":[],"bounds":{"document_bytes":16777216,"sheet_cells":100000,"rows_first":2000,"rows_last":500,"rows_between":2000,"halvings":0,"cell_chars":16384,"cell_head_chars":4096},"cells_cut":0,"cells_raw":0,"read":"whole","date_system":"1900"}

{"sheet":"Persepsional & NGB","index":0,"n_rows":51,"n_cols":26,"rows_kept":51,"cut":false,"hidden":false,"merged":[[0,25,2,25],[10,0,10,14],[0,16,0,18],[21,17,21,18],[22,17,22,18],[0,0,0,14],[2,0,2,14],[8,9,8,11],[3,0,3,8],[4,0,4,8],[5,0,5,8],[6,0,6,8],[3,10,3,14],[4,10,4,14],[5,10,5,14],[6,10,6,14],[30,13,33,13],[30,14,33,14],[19,17,19,18],[20,17,20,18],[11,0,11,14],[13,0,13,1],[14,0,19,0],[20,0,25,0],[14,12,19,12],[20,12,25,12],[20,13,25,13],[20,14,25,14],[12,0,12,14],[14,13,19,13],[14,14,19,14],[30,12,33,12],[25,20,25,21],[25,23,25,24],[23,17,23,18],[13,20,13,21],[13,23,13,24],[14,17,14,18],[15,17,15,18],[16,17,16,18],[17,17,17,18],[18,17,18,18],[26,12,29,12],[45,13,45,14],[42,9,42,12],[41,9,41,12],[40,9,40,12],[45,0,45,12],[34,0,34,11],[30,0,33,0],[26,0,29,0],[26,13,29,13],[26,14,29,14],[44,0,44,8],[44,9,44,12],[43,9,43,12],[38,0,38,14],[35,12,35,14],[41,0,41,8],[42,0,42,8],[43,0,43,8],[40,0,40,8],[40,13,40,14],[41,13,41,14],[36,12,36,14],[35,0,36,11],[50,0,50,14],[8,0,8,8],[7,16,8,18],[7,0,7,8],[7,10,7,14],[48,0,48,14],[49,0,49,14],[44,13,44,14],[46,13,46,14],[39,13,39,14],[39,0,39,12],[46,0,46,12],[42,13,42,14],[43,13,43,14]]}
["IDENTITAS DIRI",null,null,null,null,null,null,null,null,null,null,null,null,null,null,null,"Keterangan :",null,null,null,null,null,null,null,null,"Navigasi"]
[null,null,null,null,null,null,null,null,null,null,null,null,null,null,"Created By: AMN"]
[]
["Nama",null,null,null,null,null,null,null,null,":",null,null,null,null,null,null,"Kategori","Persentase","Nilai"]
["NIDN",null,null,null,null,null,null,null,null,":",null,null,null,null,null,null,"Tinggi","70% - 100%","4.9 - 7"]
["PT Pengusul",null,null,null,null,null,null,null,null,":",null,null,null,null,null,null,"Sedang","50% - 70%","3.5 - 4.9"]
["Kualifikasi Akademik dan Jabatan Akademik",null,null,null,null,null,null,null,null,":","Pilih Item",null,null,null,null,null,"Rendah","0% - 50%","0 - 3.5"]
["Golongan Ruang Kepangkatan",null,null,null,null,null,null,null,null,":","Pilih Item",null,null,null,null,null,"Minimum Persepsional 4.51 (64.44%) Kategori Sedang"]
[null,null,null,null,null,null,null,null,null,"Nilai TOEP :",null,null,"Pilih Item","Nilai TKDA :","Pilih Item"]
[]
[{"$f":"IF(AND(M36=\"LULUS\",N47=\"LULUS\"),\" \",IF(AND(N41=0,N42=0,N43=0,N44=0),\" \",IF(AND(N41=0,N42>0,N43>0,N44>0),\"Peringatan : Pilih kualifikasi akademik dan jabatan akademik di atas\",IF(AND(N41>0,N42=0,N43>0,N44>0),\"Peringatan : Pilih golongan ruang kepangkatan di atas\",IF(AND(N41=0,N42=0,N43>0,N44>0),\"Peringatan : Pilih kualifikasi akademik dan jabatan akademik serta golongan ruang kepangkatan di atas\",IF(AND(N41>0,N42>0,N43>0,N44>0,2*N41+2*N42+N43+N44<22),\"Catatan : Anda tidak dapat melanjutkan ke D4 (pengisian CV) karena jumlah konversi Nilai TOEP dan TKDA Anda kurang dari standar minimal yang anda perlukan yaitu \"&(22-(2*N41+2*N42))&\", perbaiki nilai TOEP dan/atau TKDA Anda\",IF(AND(N41>0,N42>0,N43>0,N44>0,2*N41+2*N42+N43+N44>=22,(28.1-(2*N41+2*N42+N43+N44))<4.5),\"Catatan : Rata-rata Total Nilai Persepsional yang Anda butuhkan untuk dapat lanjut ke D5 minimal 4,501\",IF(AND(N41>0,N42>0,N43>0,N44>0,2*N41+2*N42+N43+N44>=22,(28.1-(2*N41+2*N42+N43+N44))>=4.5),\"Catatan : Rata-rata Total Nilai Persepsional yang Anda butuhkan untuk dapat lanjut ke D5 minimal \"&(28.1-(2*N41+2*N42+N43+N44)),\" \"))))))))","v":" "}]
[]
["PERSEPSIONAL DIRI"]
["Penilai",null,"A","S1","S2","S3","M1","M2","M3","M4","M5","DYS","Rata-Rata","Kategori","Keterangan",null,null,null,null,null,"Kualifikasi Akademik dan Jabatan Akademik (NAP)",null,null,"Golongan Ruang Kepangkatan (NKP)"]
["Pedagogik",1,{"$f":"A!F4","v":0},{"$f":"'S1'!$F$4","v":0},{"$f":"'S2'!$F$4","v":0},{"$f":"'S3'!$F$4","v":0},{"$f":"'M1'!$F$4","v":0},{"$f":"'M2'!$F$4","v":0},{"$f":"'M3'!$F$4","v":0},{"$f":"'M4'!$F$4","v":0},{"$f":"'M5'!$F$4","v":0},{"$f":"DYS!F4","v":0},{"$f":"((SUM(C15:C20)/6)+(SUM(D15:F19)/15)+(SUM(G15:K18)/20)+(SUM(L15:L20)/6))/4","v":0},{"$f":"IF(M15<3.5,\"Rendah\",IF(M15<4.9,\"Sedang\",\"Tinggi\"))","v":"Rendah"},{"$f":"IF(M15>4,\"Lulus\",\"Tidak Lulus\")","v":"Tidak Lulus"},null,"A :","Pimpinan/Atasan",null,null,"Pilih Item",0,null,"Pilih Item",0]
[null,2,{"$f":"A!F5","v":0},{"$f":"'S1'!$F$5","v":0},{"$f":"'S2'!$F$5","v":0},{"$f":"'S3'!$F$5","v":0},{"$f":"'M1'!$F$5","v":0},{"$f":"'M2'!$F$5","v":0},{"$f":"'M3'!$F$5","v":0},{"$f":"'M4'!$F$5","v":0},{"$f":"'M5'!$F$5","v":0},{"$f":"DYS!F5","v":0},null,null,null,null,"S1 :","Sejawat 1",null,null,"S1 - ASISTEN AHLI",3,null,"III/a - Penata Muda",4]
[null,3,{"$f":"A!F6","v":0},{"$f":"'S1'!$F$6","v":0},{"$f":"'S2'!$F$6","v":0},{"$f":"'S3'!$F$6","v":0},{"$f":"'M1'!$F$6","v":0},{"$f":"'M2'!$F$6","v":0},{"$f":"'M3'!$F$6","v":0},{"$f":"'M4'!$F$6","v":0},{"$f":"'M5'!$F$6","v":0},{"$f":"DYS!F6","v":0},null,null,null,null,"S2 :","Sejawat 2",null,null,"S2 - ASISTEN AHLI",4,null,"III/b - Penata Muda Tingkat I",4]
[null,4,{"$f":"A!F7","v":0},{"$f":"'S1'!$F$7","v":0},{"$f":"'S2'!$F$7","v":0},{"$f":"'S3'!$F$7","v":0},{"$f":"'M1'!$F$7","v":0},{"$f":"'M2'!$F$7","v":0},{"$f":"'M3'!$F$7","v":0},{"$f":"'M4'!$F$7","v":0},{"$f":"'M5'!$F$7","v":0},{"$f":"DYS!F7","v":0},null,null,null,null,"S3 :","Sejawat 3",null,null,"S3 - ASISTEN AHLI",5,null,"III/c - Penata",5]
[null,5,{"$f":"A!F8","v":0},{"$f":"'S1'!$F$8","v":0},{"$f":"'S2'!$F$8","v":0},{"$f":"'S3'!$F$8","v":0},null,null,null,null,null,{"$f":"DYS!F8","v":0},null,null,null,null,"M1 :","Mahasiswa 1",null,null,"S1 - LEKTOR",4,null,"III/d - Penata Tingkat I",5]
[null,6,{"$f":"A!F9","v":0},null,null,null,null,null,null,null,null,{"$f":"DYS!F9","v":0},null,null,null,null,"M2 :","Mahasiswa 2",null,null,"S2 - LEKTOR",5,null,"IV/a - Pembina",6]
["Profesional",7,{"$f":"A!F12","v":0},{"$f":"'S1'!$F$11","v":0},{"$f":"'S2'!$F$11","v":0},{"$f":"'S3'!$F$11","v":0},{"$f":"'M1'!$F$10","v":0},{"$f":"'M2'!$F$10","v":0},{"$f":"'M3'!$F$10","v":0},{"$f":"'M4'!$F$10","v":0},{"$f":"'M5'!$F$10","v":0},{"$f":"DYS!F12","v":0},{"$f":"((SUM(C21:C26)/6)+(SUM(D21:F25)/15)+(SUM(G21:K25)/25)+(SUM(L21:L26)/6))/4","v":0},{"$f":"IF(M21<3.5,\"Rendah\",IF(M21<4.9,\"Sedang\",\"Tinggi\"))","v":"Rendah"},{"$f":"IF(M21>4,\"Lulus\",\"Tidak Lulus\")","v":"Tidak Lulus"},null,"M3 :","Mahasiswa 3",null,null,"S3 - LEKTOR",6,null,"IV/b - Pembina Tingkat I",6]
[null,8,{"$f":"A!F13","v":0},{"$f":"'S1'!$F$12","v":0},{"$f":"'S2'!$F$12","v":0},{"$f":"'S3'!$F$12","v":0},{"$f":"'M1'!$F$11","v":0},{"$f":"'M2'!$F$11","v":0},{"$f":"'M3'!$F$11","v":0},{"$f":"'M4'!$F$11","v":0},{"$f":"'M5'!$F$11","v":0},{"$f":"DYS!F13","v":0},null,null,null,null,"M4 :","Mahasiswa 4",null,null,"S1 - LEKTOR KEPALA",5,null,"IV/c - Pembina Utama Muda",6]
[null,9,{"$f":"A!F14","v":0},{"$f":"'S1'!$F$13","v":0},{"$f":"'S2'!$F$13","v":0},{"$f":"'S3'!$F$13","v":0},{"$f":"'M1'!$F$12","v":0},{"$f":"'M2'!$F$12","v":0},{"$f":"'M3'!$F$12","v":0},{"$f":"'M4'!$F$12","v":0},{"$f":"'M5'!$F$12","v":0},{"$f":"DYS!F14","v":0},null,null,null,null,"M5 :","Mahasiswa 5",null,null,"S2 - LEKTOR KEPALA",6,null,"IV/d - Pembina Utama Madya",7]
[null,10,{"$f":"A!F15","v":0},{"$f":"'S1'!$F$14","v":0},{"$f":"'S2'!$F$14","v":0},{"$f":"'S3'!$F$14","v":0},{"$f":"'M1'!$F$13","v":0},{"$f":"'M2'!$F$13","v":0},{"$f":"'M3'!$F$13","v":0},{"$f":"'M4'!$F$13","v":0},{"$f":"'M5'!$F$13","v":0},{"$f":"DYS!F15","v":0},null,null,null,null,"DYS","Peserta",null,null,"S3 - LEKTOR KEPALA",7,null,"IV/e - Pembina Utama",7]
[null,11,{"$f":"A!F16","v":0},{"$f":"'S1'!$F$15","v":0},{"$f":"'S2'!$F$15","v":0},{"$f":"'S3'!$F$15","v":0},{"$f":"'M1'!$F$14","v":0},{"$f":"'M2'!$F$14","v":0},{"$f":"'M3'!$F$14","v":0},{"$f":"'M4'!$F$14","v":0},{"$f":"'M5'!$F$14","v":0},{"$f":"DYS!F16","v":0}]
[null,12,{"$f":"A!F17","v":0},null,null,null,null,null,null,null,null,{"$f":"DYS!F17","v":0},null,null,null,null,null,null,null,null,"Kemampuan Bahasa Inggris (NBI)",null,null,"Kemampuan Dasar Akademik (NPA)"]
["Kepribadian",13,{"$f":"A!F20","v":0},{"$f":"'S1'!$F$18","v":0},{"$f":"'S2'!$F$18","v":0},{"$f":"'S3'!$F$18","v":0},{"$f":"'M1'!$F$17","v":0},{"$f":"'M2'!$F$17","v":0},{"$f":"'M3'!$F$17","v":0},{"$f":"'M4'!$F$17","v":0},{"$f":"'M5'!$F$17","v":0},{"$f":"DYS!F20","v":0},{"$f":"((SUM(C27:C30)/4)+(SUM(D27:F30)/12)+(SUM(G27:K30)/20)+(SUM(L27:L30)/4))/4","v":0},{"$f":"IF(M27<3.5,\"Rendah\",IF(M27<4.9,\"Sedang\",\"Tinggi\"))","v":"Rendah"},{"$f":"IF(M27>4,\"Lulus\",\"Tidak Lulus\")","v":"Tidak Lulus"},null,null,null,null,null,"Pilih Item",0,null,"Pilih Item",0]
[null,14,{"$f":"A!F21","v":0},{"$f":"'S1'!$F$19","v":0},{"$f":"'S2'!$F$19","v":0},{"$f":"'S3'!$F$19","v":0},{"$f":"'M1'!$F$18","v":0},{"$f":"'M2'!$F$18","v":0},{"$f":"'M3'!$F$18","v":0},{"$f":"'M4'!$F$18","v":0},{"$f":"'M5'!$F$18","v":0},{"$f":"DYS!F21","v":0},null,null,null,null,null,null,null,null,"< 26",1,null,"< 25",1]
[null,15,{"$f":"A!F22","v":0},{"$f":"'S1'!$F$20","v":0},{"$f":"'S2'!$F$20","v":0},{"$f":"'S3'!$F$20","v":0},{"$f":"'M1'!$F$19","v":0},{"$f":"'M2'!$F$19","v":0},{"$f":"'M3'!$F$19","v":0},{"$f":"'M4'!$F$19","v":0},{"$f":"'M5'!$F$19","v":0},{"$f":"DYS!F22","v":0},null,null,null,null,null,null,null,null,"26 - 35",2,null,"25 - 34",2]
[null,16,{"$f":"A!F23","v":0},{"$f":"'S1'!$F$21","v":0},{"$f":"'S2'!$F$21","v":0},{"$f":"'S3'!$F$21","v":0},{"$f":"'M1'!$F$20","v":0},{"$f":"'M2'!$F$20","v":0},{"$f":"'M3'!$F$20","v":0},{"$f":"'M4'!$F$20","v":0},{"$f":"'M5'!$F$20","v":0},{"$f":"DYS!F23","v":0},null,null,null,null,null,null,null,null,"36 - 45",3,null,"35 - 44",3]
["Sosial",17,{"$f":"A!F26","v":0},{"$f":"'S1'!$F$24","v":0},{"$f":"'S2'!$F$24","v":0},{"$f":"'S3'!$F$24","v":0},{"$f":"'M1'!$F$23","v":0},{"$f":"'M2'!$F$23","v":0},{"$f":"'M3'!$F$23","v":0},{"$f":"'M4'!$F$23","v":0},{"$f":"'M5'!$F$23","v":0},{"$f":"DYS!F26","v":0},{"$f":"((SUM(C31:C34)/4)+(SUM(D31:F34)/12)+(SUM(G31:K34)/20)+(SUM(L31:L34)/4))/4","v":0},{"$f":"IF(M31<3.5,\"Rendah\",IF(M31<4.9,\"Sedang\",\"Tinggi\"))","v":"Rendah"},{"$f":"IF(M31>4,\"Lulus\",\"Tidak Lulus\")","v":"Tidak Lulus"},null,null,null,null,null,"46 - 55",4,null,"45 - 54",4]
[null,18,{"$f":"A!F27","v":0},{"$f":"'S1'!$F$25","v":0},{"$f":"'S2'!$F$25","v":0},{"$f":"'S3'!$F$25","v":0},{"$f":"'M1'!$F$24","v":0},{"$f":"'M2'!$F$24","v":0},{"$f":"'M3'!$F$24","v":0},{"$f":"'M4'!$F$24","v":0},{"$f":"'M5'!$F$24","v":0},{"$f":"DYS!F27","v":0},null,null,null,null,null,null,null,null,"56 - 65",5,null,"55 - 64",5]
[null,19,{"$f":"A!F28","v":0},{"$f":"'S1'!$F$26","v":0},{"$f":"'S2'!$F$26","v":0},{"$f":"'S3'!$F$26","v":0},{"$f":"'M1'!$F$25","v":0},{"$f":"'M2'!$F$25","v":0},{"$f":"'M3'!$F$25","v":0},{"$f":"'M4'!$F$25","v":0},{"$f":"'M5'!$F$25","v":0},{"$f":"DYS!F28","v":0},null,null,null,null,null,null,null,null,"66 - 75",6,null,"65 - 74",6]
[null,20,{"$f":"A!F29","v":0},{"$f":"'S1'!$F$27","v":0},{"$f":"'S2'!$F$27","v":0},{"$f":"'S3'!$F$27","v":0},{"$f":"'M1'!$F$26","v":0},{"$f":"'M2'!$F$26","v":0},{"$f":"'M3'!$F$26","v":0},{"$f":"'M4'!$F$26","v":0},{"$f":"'M5'!$F$26","v":0},{"$f":"DYS!F29","v":0},null,null,null,null,null,null,null,null,"≥ 76",7,null,"> 74",7]
["RATA-RATA TOTAL PERSEPSIONAL",null,null,null,null,null,null,null,null,null,null,null,{"$f":"((SUM(C15:C34)/20)+(SUM(D15:F34)/54)+(SUM(G15:K34)/85)+(SUM(L15:L34)/20))/4","v":0},{"$f":"IF(M35<3.5,\"Rendah\",IF(M35<4.9,\"Sedang\",\"Tinggi\"))","v":"Rendah"},{"$f":"IF(M35>4.5,\"Lulus\",\"Tidak Lulus\")","v":"Tidak Lulus"}]
["KESIMPULAN BERDASARKAN NILAI PERSEPSIONAL",null,null,null,null,null,null,null,null,null,null,null,{"$f":"IF(AND(O15=\"Lulus\",O21=\"Lulus\",O27=\"Lulus\",O31=\"Lulus\",O35=\"Lulus\",(COUNTIF(C15:L34,\"<4\"))=0),\"LULUS\",\"TIDAK LULUS\")","v":"TIDAK LULUS"}]
[null,null,null,null,null,null,null,null,null,null,null,null,{"$f":"IF((COUNTIF(C15:L34,\"<4\"))>0,\"Terdapat nilai kurang dari 4\",IF(M36=\"TIDAK LULUS\",\"   \",\"\"))","v":"Terdapat nilai kurang dari 4"}]
[]
["NILAI GABUNGAN"]
["KOMPONEN PENILAIAN",null,null,null,null,null,null,null,null,null,null,null,null,"SKOR"]
["Kualifikasi Akademik dan Jabatan Akademik (NAP)",null,null,null,null,null,null,null,null,{"$f":"IF(K7=\"Pilih Item\",\"\",K7)","v":""},null,null,null,{"$f":"IF(J41=\"\",0,IF(J41=0,0,(VLOOKUP(J41,U15:V24,2,FALSE))))","v":0}]
["Golongan Ruang Kepangkatan (NKP)",null,null,null,null,null,null,null,null,{"$f":"IF(K8=\"Pilih Item\",\"\",K8)","v":""},null,null,null,{"$f":"IF(J42=\"\",0,IF(J42=0,0,(VLOOKUP(J42,X15:Y24,2,FALSE))))","v":0}]
["Kemampuan Bahasa Inggris (NBI)",null,null,null,null,null,null,null,null,{"$f":"IF(M9=\"Pilih Item\",\"\",M9)","v":""},null,null,null,{"$f":"IF(J43=\"\",0,IF(J43=0,0,(VLOOKUP(J43,U27:V34,2,FALSE))))","v":0}]
["Kemampuan Dasar Akademik (NPA)",null,null,null,null,null,null,null,null,{"$f":"IF(O9=\"Pilih Item\",\"\",O9)","v":""},null,null,null,{"$f":"IF(J44=\"\",0,IF(J44=0,0,(VLOOKUP(J44,X27:Y34,2,FALSE))))","v":0}]
["Penilaian Persepsional (NPS)",null,null,null,null,null,null,null,null,"Rata-Rata Skor Total Persepsional",null,null,null,{"$f":"M35","v":0},{"$f":"M35","v":0}]
["NILAI GABUNGAN",null,null,null,null,null,null,null,null,null,null,null,null,{"$f":"(2*N41+2*N42+N43+N44+N45)/7","v":0}]
["KESIMPULAN BERDASARKAN NILAI GABUNGAN",null,null,null,null,null,null,null,null,null,null,null,null,{"$f":"IF(N46>4,\"LULUS\",\"TIDAK LULUS\")","v":"TIDAK LULUS"}]
[]
["BERDASARKAN HASIL PENILAIAN PERSEPSIONAL DAN NILAI GABUNGAN"]
[{"$f":"IF(AND(M36=\"Lulus\",N47=\"Lulus\"),\"Saudara \"&K4&\" Dinyatakan Dapat Melanjutkan Ke-D5 dan Mengisi Deskripsi Diri\",\"Saudara Dinyatakan TIDAK LULUS dan Tidak Dapat Melanjutkan Ke-D5\")","v":"Saudara Dinyatakan TIDAK LULUS dan Tidak Dapat Melanjutkan Ke-D5"}]
[{"$f":"A11","v":" "}]

{"sheet":"A","index":1,"n_rows":29,"n_cols":8,"rows_kept":29,"cut":false,"hidden":false,"merged":[[0,7,2,7],[17,0,17,4],[18,2,18,4],[23,0,23,4],[24,2,24,4],[0,0,0,5],[1,0,1,4],[1,5,2,5],[2,2,2,4],[9,0,9,4],[10,2,10,4]]}
["PENILAIAN PERSEPSIONAL ATASAN",null,null,null,null,null,null,"Navigasi"]
["A. Kompetensi Pedagogik",null,null,null,null,"Nilai"]
["No","Aspek yang dinilai","Penilaian"]
[1,"Pengumpulan dokumen pembelajaran (RPS, handout, soal)","Tidak Lengkap",null,"Lengkap"]
[2,"Penyelenggaraan perkuliahan menurut standar jumlah tatap muka","Tidak Pernah",null,"Selalu"]
[3,"Kepatuhan terhadap etika/norma akademik yang ditetapkan lembaga","Rendah",null,"Tinggi",null,null,"Persepsional"]
[4,"Penyerahan nilai mahasiswa sesuai dengan Jadwal yang telah ditetapkan","Tidak Pernah",null,"Selalu"]
[5,"Menyediakan cukup waktu dalam pembimbingan mahasiswa","Tidak Pernah",null,"Selalu"]
[6,"Hasil evaluasi kepuasan mahasiswa terhadap pelayanan dosen","Buruk",null,"Baik"]
["B. Kompetensi Profesional"]
["No","Aspek yang dinilai","Penilaian"]
[7,"Penguasaan bidang ilmu dan keahlian yang menjadi tugas pokoknya","Rendah",null,"Tinggi"]
[8,"Kemampuan menjelaskan bidang ilmunya secara kontekstual","Rendah",null,"Tinggi"]
[9,"Penguasaan bidang ilmu termasuk referensi yang dimilikinya","Rendah",null,"Tinggi"]
[10,"Ketidaksiapan melakukan refleksi dan diskusi (sharing) dengan kolega","Tidak  Pernah",null,"Selalu"]
[11,"Produktivitas dalam menghasilkan karya tulis ilmiah","Rendah",null,"Tinggi"]
[12,"Keterlibatan dalam kegiatan ilmiah organisasi profesi","Tidak  Pernah",null,"Selalu"]
["C. Kompetensi Kepribadian"]
["No","Aspek yang dinilai","Penilaian"]
[13,"Kearifan dalam mengambil keputusan","Tidak  Pernah",null,"Selalu"]
[14,"Keteladanan dan konsistensi dalam kata dan tindakan","Tidak  Pernah",null,"Selalu"]
[15,"Kemampuan mengendalikan diri dalam berbagai situasi dan kondisi","Tidak  Pernah",null,"Selalu"]
[16,"Perlakuan terhadap sejawat, karyawan, dan mahasiswa sesuai dengan kepentingan diri sendiri","Tidak  Pernah",null,"Selalu"]
["D. Kompetensi Sosial"]
["No","Aspek yang dinilai","Penilaian"]
[17,"Kemampuan berkomunikasi lisan dan tulisan","Rendah",null,"Tinggi"]
[18,"Ketidaksiapan menerima kritik, saran, dan pendapat orang lain","Rendah",null,"Tinggi"]
[19,"Pergaulan dengan teman sejawat, karyawan, mahasiswa dan masyarakat","Terbatas",null,"Luas"]
[20,"Toleran terhadap keberagaman mahasiswa dan sivitas akademika","Tidak Pernah",null,"Selalu"]

{"sheet":"S1","index":2,"n_rows":27,"n_cols":8,"rows_kept":27,"cut":false,"hidden":false,"merged":[[0,7,2,7],[22,2,22,4],[1,5,2,5],[0,0,0,5],[1,0,1,4],[8,0,8,4],[15,0,15,4],[21,0,21,4],[2,2,2,4],[9,2,9,4],[16,2,16,4]]}
["PENILAIAN PERSEPSIONAL SEJAWAT 1",null,null,null,null,null,null,"Navigasi"]
["A. Kompetensi Pedagogik",null,null,null,null,"Nilai"]
["No","Aspek yang dinilai","Penilaian"]
[1,"Kinerja dalam mengajar dan mengelola kelas","Buruk",null,"Baik"]
[2,"Penegakan aturan akademik","Tidak pernah",null,"Selalu"]
[3,"Pemanfaatan media dan teknologi mutakhir dalam pembelajaran","Tidak pernah",null,"Selalu",null,null,"Persepsional"]
[4,"Menentukan waktu pembimbingan secara sepihak","Tidak pernah",null,"Selalu"]
[5,"Kedisiplinan dalam mengajar","Rendah",null,"Tinggi"]
["B. Kompetensi Profesional"]
["No","Aspek yang dinilai","Penilaian"]
[6,"Mengajar yang tidak sesuai dengan bidang ilmunya","Tidak pernah",null,"Selalu"]
[7,"Mengikuti perkembangan dan menguasai bidang ilmunya","Tidak pernah",null,"Selalu"]
[8,"Keteguhan pendirian di saat diskusi","Lemah",null,"Kuat"]
[9,"Produktivitas dalam penelitian/kajian dan/atau pengembangan/rekayasa/desain atau karya tulis lainnya","Rendah",null,"Tinggi"]
[10,"Keterlibatan dalam kegiatan ilmiah organisasi profesi","Tidak pernah",null,"Selalu"]
["C. Kompetensi Kepribadian"]
["No","Aspek yang dinilai","Penilaian"]
[11,"Kearifan dalam mengambil keputusan","Tidak pernah",null,"Selalu"]
[12,"Keteladanan dan konsistensi dalam kata dan tindakan","Rendah",null,"Tinggi"]
[13,"Kemampuan mengendalikan diri dalam berbagai situasi dan kondisi","Rendah",null,"Tinggi"]
[14,"Berteman berdasarkan kepentingan dan kebutuhan diri sendiri","Tidak pernah",null,"Selalu"]
["D. Kompetensi Sosial"]
["No","Aspek yang dinilai","Penilaian"]
[15,"Kemampuan berkomunikasi lisan dan tulisan","Rendah",null,"Tinggi"]
[16,"Sikap dalam menerima kritik, saran, dan pendapat dari mahasiswa","Tertutup",null,"Terbuka"]
[17,"Pergaulan di kalangan sejawat, karyawan, mahasiswa dan masyarakat","Kaku",null,"Luwes"]
[18,"Toleran terhadap keberagaman mahasiswa dan sivitas akademika","Tidak pernah",null,"Selalu"]

{"sheet":"S2","index":3,"n_rows":27,"n_cols":8,"rows_kept":27,"cut":false,"hidden":false,"merged":[[0,7,2,7],[15,0,15,4],[16,2,16,4],[21,0,21,4],[22,2,22,4],[0,0,0,5],[1,0,1,4],[1,5,2,5],[2,2,2,4],[8,0,8,4],[9,2,9,4]]}
["PENILAIAN PERSEPSIONAL SEJAWAT 2",null,null,null,null,null,null,"Navigasi"]
["A. Kompetensi Pedagogik",null,null,null,null,"Nilai"]
["No","Aspek yang dinilai","Penilaian"]
[1,"Kinerja dalam mengajar dan mengelola kelas","Buruk",null,"Baik"]
[2,"Penegakan aturan akademik","Tidak pernah",null,"Selalu"]
[3,"Pemanfaatan media dan teknologi mutakhir dalam pembelajaran","Tidak pernah",null,"Selalu",null,null,"Persepsional"]
[4,"Menentukan waktu pembimbingan secara sepihak","Tidak pernah",null,"Selalu"]
[5,"Kedisiplinan dalam mengajar","Rendah",null,"Tinggi"]
["B. Kompetensi Profesional"]
["No","Aspek yang dinilai","Penilaian"]
[6,"Mengajar yang tidak sesuai dengan bidang ilmunya","Tidak pernah",null,"Selalu"]
[7,"Mengikuti perkembangan dan menguasai bidang ilmunya","Tidak pernah",null,"Selalu"]
[8,"Keteguhan pendirian di saat diskusi","Lemah",null,"Kuat"]
[9,"Produktivitas dalam penelitian/kajian dan/atau pengembangan/rekayasa/desain atau karya tulis lainnya","Rendah",null,"Tinggi"]
[10,"Keterlibatan dalam kegiatan ilmiah organisasi profesi","Tidak pernah",null,"Selalu"]
["C. Kompetensi Kepribadian"]
["No","Aspek yang dinilai","Penilaian"]
[11,"Kearifan dalam mengambil keputusan","Tidak pernah",null,"Selalu"]
[12,"Keteladanan dan konsistensi dalam kata dan tindakan","Rendah",null,"Tinggi"]
[13,"Kemampuan mengendalikan diri dalam berbagai situasi dan kondisi","Rendah",null,"Tinggi"]
[14,"Berteman berdasarkan kepentingan dan kebutuhan diri sendiri","Tidak pernah",null,"Selalu"]
["D. Kompetensi Sosial"]
["No","Aspek yang dinilai","Penilaian"]
[15,"Kemampuan berkomunikasi lisan dan tulisan","Rendah",null,"Tinggi"]
[16,"Sikap dalam menerima kritik, saran, dan pendapat dari mahasiswa","Tertutup",null,"Terbuka"]
[17,"Pergaulan di kalangan sejawat, karyawan, mahasiswa dan masyarakat","Kaku",null,"Luwes"]
[18,"Toleran terhadap keberagaman mahasiswa dan sivitas akademika","Tidak pernah",null,"Selalu"]

{"sheet":"S3","index":4,"n_rows":27,"n_cols":8,"rows_kept":27,"cut":false,"hidden":false,"merged":[[0,7,2,7],[15,0,15,4],[16,2,16,4],[21,0,21,4],[22,2,22,4],[0,0,0,5],[1,0,1,4],[1,5,2,5],[2,2,2,4],[8,0,8,4],[9,2,9,4]]}
["PENILAIAN PERSEPSIONAL SEJAWAT 3",null,null,null,null,null,null,"Navigasi"]
["A. Kompetensi Pedagogik",null,null,null,null,"Nilai"]
["No","Aspek yang dinilai","Penilaian"]
[1,"Kinerja dalam mengajar dan mengelola kelas","Buruk",null,"Baik"]
[2,"Penegakan aturan akademik","Tidak pernah",null,"Selalu"]
[3,"Pemanfaatan media dan teknologi mutakhir dalam pembelajaran","Tidak pernah",null,"Selalu",null,null,"Persepsional"]
[4,"Menentukan waktu pembimbingan secara sepihak","Tidak pernah",null,"Selalu"]
[5,"Kedisiplinan dalam mengajar","Rendah",null,"Tinggi"]
["B. Kompetensi Profesional"]
["No","Aspek yang dinilai","Penilaian"]
[6,"Mengajar yang tidak sesuai dengan bidang ilmunya","Tidak pernah",null,"Selalu"]
[7,"Mengikuti perkembangan dan menguasai bidang ilmunya","Tidak pernah",null,"Selalu"]
[8,"Keteguhan pendirian di saat diskusi","Lemah",null,"Kuat"]
[9,"Produktivitas dalam penelitian/kajian dan/atau pengembangan/rekayasa/desain atau karya tulis lainnya","Rendah",null,"Tinggi"]
[10,"Keterlibatan dalam kegiatan ilmiah organisasi profesi","Tidak pernah",null,"Selalu"]
["C. Kompetensi Kepribadian"]
["No","Aspek yang dinilai","Penilaian"]
[11,"Kearifan dalam mengambil keputusan","Tidak pernah",null,"Selalu"]
[12,"Keteladanan dan konsistensi dalam kata dan tindakan","Rendah",null,"Tinggi"]
[13,"Kemampuan mengendalikan diri dalam berbagai situasi dan kondisi","Rendah",null,"Tinggi"]
[14,"Berteman berdasarkan kepentingan dan kebutuhan diri sendiri","Tidak pernah",null,"Selalu"]
["D. Kompetensi Sosial"]
["No","Aspek yang dinilai","Penilaian"]
[15,"Kemampuan berkomunikasi lisan dan tulisan","Rendah",null,"Tinggi"]
[16,"Sikap dalam menerima kritik, saran, dan pendapat dari mahasiswa","Tertutup",null,"Terbuka"]
[17,"Pergaulan di kalangan sejawat, karyawan, mahasiswa dan masyarakat","Kaku",null,"Luwes"]
[18,"Toleran terhadap keberagaman mahasiswa dan sivitas akademika","Tidak pernah",null,"Selalu"]

{"sheet":"M1","index":5,"n_rows":26,"n_cols":8,"rows_kept":26,"cut":false,"hidden":false,"merged":[[0,7,2,7],[14,0,14,4],[15,2,15,4],[20,0,20,4],[21,2,21,4],[0,0,0,5],[1,0,1,4],[1,5,2,5],[2,2,2,4],[7,0,7,4],[8,2,8,4]]}
["PENILAIAN PERSEPSIONAL MAHASISWA 1",null,null,null,null,null,null,"Navigasi"]
["A. Kompetensi Pedagogik",null,null,null,null,"Nilai"]
["No","Aspek yang dinilai","Penilaian"]
[1,"Perangkat pembelajaran berupa Rencana Pembelajaran per Semester (RPS)","Tidak Lengkap",null,"Lengkap"]
[2,"Pengemasan Pembelajaran","Tidak Memotivasi",null,"Memotivasi"]
[3,"Materi pembelajaran diberikan mengikuti kemauan dosen","Tidak pernah",null,"Selalu",null,null,"Persepsional"]
[4,"Penilaian hasil belajar mahasiswa","Objektif",null,"Subjektif"]
["B. Kompetensi Profesional"]
["No","Aspek yang dinilai","Penilaian"]
[5,"Struktur materi yang diajarkan","Acak",null,"Runtut"]
[6,"Penguasaan bidang ilmu yang diajarkannya","Dangkal",null,"Dalam"]
[7,"Sifat materi yang diajarkan","Kontekstual",null,"Tekstual"]
[8,"Materi yang diajarkan dan referensinya","Usang",null,"Terkini"]
[9,"Pelibatan mahasiswa dalam penelitian/kajian dan pengembangan/rekayasa/desain","Tidak  Pernah",null,"Selalu"]
["C. Kompetensi Kepribadian"]
["No","Aspek yang dinilai","Penilaian"]
[10,"Arif dalam mengambil keputusan","Tidak  Pernah",null,"Selalu"]
[11,"Memberikan keteladanan dalam bersikap dan berperilaku","Tidak  Pernah",null,"Selalu"]
[12,"Pengendalian diri dalam berbagai situasi dan kondisi","Tidak  Mampu",null,"Mampu"]
[13,"Pilih kasih dalam memperlakukan mahasiswa","Tidak  Pernah",null,"Selalu"]
["D. Kompetensi Sosial"]
["No","Aspek yang dinilai","Penilaian"]
[14,"Kemampuan berkomunikasi lisan dan tulisan","Rendah",null,"Tinggi"]
[15,"Sikap dalam menerima kritik, saran, dan pendapat dari mahasiswa","Tertutup",null,"Terbuka"]
[16,"Interaksi dengan mahasiswa","Kaku",null,"Luwes"]
[17,"Toleran terhadap keberagaman mahasiswa","Tidak Pernah",null,"Selalu"]

{"sheet":"M2","index":6,"n_rows":26,"n_cols":8,"rows_kept":26,"cut":false,"hidden":false,"merged":[[0,7,2,7],[14,0,14,4],[15,2,15,4],[20,0,20,4],[21,2,21,4],[0,0,0,5],[1,0,1,4],[1,5,2,5],[2,2,2,4],[7,0,7,4],[8,2,8,4]]}
["PENILAIAN PERSEPSIONAL MAHASISWA 2",null,null,null,null,null,null,"Navigasi"]
["A. Kompetensi Pedagogik",null,null,null,null,"Nilai"]
["No","Aspek yang dinilai","Penilaian"]
[1,"Perangkat pembelajaran berupa Rencana Pembelajaran per Semester (RPS)","Tidak Lengkap",null,"Lengkap"]
[2,"Pengemasan Pembelajaran","Tidak Memotivasi",null,"Memotivasi"]
[3,"Materi pembelajaran diberikan mengikuti kemauan dosen","Tidak pernah",null,"Selalu",null,null,"Persepsional"]
[4,"Penilaian hasil belajar mahasiswa","Objektif",null,"Subjektif"]
["B. Kompetensi Profesional"]
["No","Aspek yang dinilai","Penilaian"]
[5,"Struktur materi yang diajarkan","Acak",null,"Runtut"]
[6,"Penguasaan bidang ilmu yang diajarkannya","Dangkal",null,"Dalam"]
[7,"Sifat materi yang diajarkan","Kontekstual",null,"Tekstual"]
[8,"Materi yang diajarkan dan referensinya","Usang",null,"Terkini"]
[9,"Pelibatan mahasiswa dalam penelitian/kajian dan pengembangan/rekayasa/desain","Tidak  Pernah",null,"Selalu"]
["C. Kompetensi Kepribadian"]
["No","Aspek yang dinilai","Penilaian"]
[10,"Arif dalam mengambil keputusan","Tidak  Pernah",null,"Selalu"]
[11,"Memberikan keteladanan dalam bersikap dan berperilaku","Tidak  Pernah",null,"Selalu"]
[12,"Pengendalian diri dalam berbagai situasi dan kondisi","Tidak  Mampu",null,"Mampu"]
[13,"Pilih kasih dalam memperlakukan mahasiswa","Tidak  Pernah",null,"Selalu"]
["D. Kompetensi Sosial"]
["No","Aspek yang dinilai","Penilaian"]
[14,"Kemampuan berkomunikasi lisan dan tulisan","Rendah",null,"Tinggi"]
[15,"Sikap dalam menerima kritik, saran, dan pendapat dari mahasiswa","Tertutup",null,"Terbuka"]
[16,"Interaksi dengan mahasiswa","Kaku",null,"Luwes"]
[17,"Toleran terhadap keberagaman mahasiswa","Tidak Pernah",null,"Selalu"]

{"sheet":"M3","index":7,"n_rows":26,"n_cols":8,"rows_kept":26,"cut":false,"hidden":false,"merged":[[0,7,2,7],[14,0,14,4],[15,2,15,4],[20,0,20,4],[21,2,21,4],[0,0,0,5],[1,0,1,4],[1,5,2,5],[2,2,2,4],[7,0,7,4],[8,2,8,4]]}
["PENILAIAN PERSEPSIONAL MAHASISWA 3",null,null,null,null,null,null,"Navigasi"]
["A. Kompetensi Pedagogik",null,null,null,null,"Nilai"]
["No","Aspek yang dinilai","Penilaian"]
[1,"Perangkat pembelajaran berupa Rencana Pembelajaran per Semester (RPS)","Tidak Lengkap",null,"Lengkap"]
[2,"Pengemasan Pembelajaran","Tidak Memotivasi",null,"Memotivasi"]
[3,"Materi pembelajaran diberikan mengikuti kemauan dosen","Tidak pernah",null,"Selalu",null,null,"Persepsional"]
[4,"Penilaian hasil belajar mahasiswa","Objektif",null,"Subjektif"]
["B. Kompetensi Profesional"]
["No","Aspek yang dinilai","Penilaian"]
[5,"Struktur materi yang diajarkan","Acak",null,"Runtut"]
[6,"Penguasaan bidang ilmu yang diajarkannya","Dangkal",null,"Dalam"]
[7,"Sifat materi yang diajarkan","Kontekstual",null,"Tekstual"]
[8,"Materi yang diajarkan dan referensinya","Usang",null,"Terkini"]
[9,"Pelibatan mahasiswa dalam penelitian/kajian dan pengembangan/rekayasa/desain","Tidak  Pernah",null,"Selalu"]
["C. Kompetensi Kepribadian"]
["No","Aspek yang dinilai","Penilaian"]
[10,"Arif dalam mengambil keputusan","Tidak  Pernah",null,"Selalu"]
[11,"Memberikan keteladanan dalam bersikap dan berperilaku","Tidak  Pernah",null,"Selalu"]
[12,"Pengendalian diri dalam berbagai situasi dan kondisi","Tidak  Mampu",null,"Mampu"]
[13,"Pilih kasih dalam memperlakukan mahasiswa","Tidak  Pernah",null,"Selalu"]
["D. Kompetensi Sosial"]
["No","Aspek yang dinilai","Penilaian"]
[14,"Kemampuan berkomunikasi lisan dan tulisan","Rendah",null,"Tinggi"]
[15,"Sikap dalam menerima kritik, saran, dan pendapat dari mahasiswa","Tertutup",null,"Terbuka"]
[16,"Interaksi dengan mahasiswa","Kaku",null,"Luwes"]
[17,"Toleran terhadap keberagaman mahasiswa","Tidak Pernah",null,"Selalu"]

{"sheet":"M4","index":8,"n_rows":26,"n_cols":8,"rows_kept":26,"cut":false,"hidden":false,"merged":[[0,7,2,7],[14,0,14,4],[15,2,15,4],[20,0,20,4],[21,2,21,4],[0,0,0,5],[1,0,1,4],[1,5,2,5],[2,2,2,4],[7,0,7,4],[8,2,8,4]]}
["PENILAIAN PERSEPSIONAL MAHASISWA 4",null,null,null,null,null,null,"Navigasi"]
["A. Kompetensi Pedagogik",null,null,null,null,"Nilai"]
["No","Aspek yang dinilai","Penilaian"]
[1,"Perangkat pembelajaran berupa Rencana Pembelajaran per Semester (RPS)","Tidak Lengkap",null,"Lengkap"]
[2,"Pengemasan Pembelajaran","Tidak Memotivasi",null,"Memotivasi"]
[3,"Materi pembelajaran diberikan mengikuti kemauan dosen","Tidak pernah",null,"Selalu",null,null,"Persepsional"]
[4,"Penilaian hasil belajar mahasiswa","Objektif",null,"Subjektif"]
["B. Kompetensi Profesional"]
["No","Aspek yang dinilai","Penilaian"]
[5,"Struktur materi yang diajarkan","Acak",null,"Runtut"]
[6,"Penguasaan bidang ilmu yang diajarkannya","Dangkal",null,"Dalam"]
[7,"Sifat materi yang diajarkan","Kontekstual",null,"Tekstual"]
[8,"Materi yang diajarkan dan referensinya","Usang",null,"Terkini"]
[9,"Pelibatan mahasiswa dalam penelitian/kajian dan pengembangan/rekayasa/desain","Tidak  Pernah",null,"Selalu"]
["C. Kompetensi Kepribadian"]
["No","Aspek yang dinilai","Penilaian"]
[10,"Arif dalam mengambil keputusan","Tidak  Pernah",null,"Selalu"]
[11,"Memberikan keteladanan dalam bersikap dan berperilaku","Tidak  Pernah",null,"Selalu"]
[12,"Pengendalian diri dalam berbagai situasi dan kondisi","Tidak  Mampu",null,"Mampu"]
[13,"Pilih kasih dalam memperlakukan mahasiswa","Tidak  Pernah",null,"Selalu"]
["D. Kompetensi Sosial"]
["No","Aspek yang dinilai","Penilaian"]
[14,"Kemampuan berkomunikasi lisan dan tulisan","Rendah",null,"Tinggi"]
[15,"Sikap dalam menerima kritik, saran, dan pendapat dari mahasiswa","Tertutup",null,"Terbuka"]
[16,"Interaksi dengan mahasiswa","Kaku",null,"Luwes"]
[17,"Toleran terhadap keberagaman mahasiswa","Tidak Pernah",null,"Selalu"]

{"sheet":"M5","index":9,"n_rows":26,"n_cols":8,"rows_kept":26,"cut":false,"hidden":false,"merged":[[0,7,2,7],[14,0,14,4],[15,2,15,4],[20,0,20,4],[21,2,21,4],[0,0,0,5],[1,0,1,4],[1,5,2,5],[2,2,2,4],[7,0,7,4],[8,2,8,4]]}
["PENILAIAN PERSEPSIONAL MAHASISWA 5",null,null,null,null,null,null,"Navigasi"]
["A. Kompetensi Pedagogik",null,null,null,null,"Nilai"]
["No","Aspek yang dinilai","Penilaian"]
[1,"Perangkat pembelajaran berupa Rencana Pembelajaran per Semester (RPS)","Tidak Lengkap",null,"Lengkap"]
[2,"Pengemasan Pembelajaran","Tidak Memotivasi",null,"Memotivasi"]
[3,"Materi pembelajaran diberikan mengikuti kemauan dosen","Tidak pernah",null,"Selalu",null,null,"Persepsional"]
[4,"Penilaian hasil belajar mahasiswa","Objektif",null,"Subjektif"]
["B. Kompetensi Profesional"]
["No","Aspek yang dinilai","Penilaian"]
[5,"Struktur materi yang diajarkan","Acak",null,"Runtut"]
[6,"Penguasaan bidang ilmu yang diajarkannya","Dangkal",null,"Dalam"]
[7,"Sifat materi yang diajarkan","Kontekstual",null,"Tekstual"]
[8,"Materi yang diajarkan dan referensinya","Usang",null,"Terkini"]
[9,"Pelibatan mahasiswa dalam penelitian/kajian dan pengembangan/rekayasa/desain","Tidak  Pernah",null,"Selalu"]
["C. Kompetensi Kepribadian"]
["No","Aspek yang dinilai","Penilaian"]
[10,"Arif dalam mengambil keputusan","Tidak  Pernah",null,"Selalu"]
[11,"Memberikan keteladanan dalam bersikap dan berperilaku","Tidak  Pernah",null,"Selalu"]
[12,"Pengendalian diri dalam berbagai situasi dan kondisi","Tidak  Mampu",null,"Mampu"]
[13,"Pilih kasih dalam memperlakukan mahasiswa","Tidak  Pernah",null,"Selalu"]
["D. Kompetensi Sosial"]
["No","Aspek yang dinilai","Penilaian"]
[14,"Kemampuan berkomunikasi lisan dan tulisan","Rendah",null,"Tinggi"]
[15,"Sikap dalam menerima kritik, saran, dan pendapat dari mahasiswa","Tertutup",null,"Terbuka"]
[16,"Interaksi dengan mahasiswa","Kaku",null,"Luwes"]
[17,"Toleran terhadap keberagaman mahasiswa","Tidak Pernah",null,"Selalu"]

{"sheet":"DYS","index":10,"n_rows":29,"n_cols":8,"rows_kept":29,"cut":false,"hidden":false,"merged":[[0,7,2,7],[17,0,17,4],[18,2,18,4],[23,0,23,4],[24,2,24,4],[10,2,10,4],[0,0,0,5],[1,0,1,4],[1,5,2,5],[2,2,2,4],[9,0,9,4]]}
["PENILAIAN PERSEPSIONAL DOSEN YANG SERTIFIKASI",null,null,null,null,null,null,"Navigasi"]
["A. Kompetensi Pedagogik",null,null,null,null,"Nilai"]
["No","Aspek yang dinilai","Penilaian"]
[1,"Menggunakan perangkat pembelajaran secara konsisten tiap tahun","Tidak Pernah",null,"Selalu"]
[2,"Menyelenggarakan perkuliahan secara teratur sesuai dengan kalender akademik","Tidak Pernah",null,"Selalu"]
[3,"Mengelola kelas sesuai dengan kondisi mahasiswa dan waktu pembelajaran","Tidak Pernah",null,"Selalu",null,null,"Persepsional"]
[4,"Memanfaatkan media dan teknologi pembelajaran secara maksimal","Tidak Pernah",null,"Selalu"]
[5,"Menilai hasil belajar mahasiswa secara subjektif","Tidak Pernah",null,"Selalu"]
[6,"Menyediakan cukup waktu dalam pembimbingan mahasiswa","Tidak Pernah",null,"Selalu"]
["B. Kompetensi Profesional"]
["No","Aspek yang dinilai","Penilaian"]
[7,"Penguasaan bidang ilmu yang menjadi keahlian sesuai dengan tugas pokok","Rendah",null,"Tinggi"]
[8,"Kemampuan menunjukkan keterkaitan antara teori yang diajarkan dengan aplikasinya dalam kehidupan","Rendah",null,"Tinggi"]
[9,"Pemutahiran bidang ilmu yang diajarkan dan referensi perkuliahan melalui akses teknologi","Tidak  Pernah",null,"Selalu"]
[10,"Melakukan refleksi dan diskusi (sharing) bidang ilmu dengan kolega","Tidak  Pernah",null,"Selalu"]
[11,"Pelibatan mahasiswa dalam penelitian/kajian, pengembangan/rekayasa/desain, atau karya tulis ilmiah lainnya","Tidak  Pernah",null,"Selalu"]
[12,"Keterlibatan dalam kegiatan ilmiah organisasi profesi","Tidak  Pernah",null,"Selalu"]
["C. Kompetensi Kepribadian"]
["No","Aspek yang dinilai","Penilaian"]
[13,"Kearifan dalam mengambil keputusan","Tidak  Pernah",null,"Selalu"]
[14,"Keteladanan dan konsistensi dalam kata dan tindakan","Tidak  Pernah",null,"Selalu"]
[15,"Kemampuan mengendalikan diri dalam berbagai situasi dan kondisi","Rendah",null,"Tinggi"]
[16,"Perlakuan terhadap sejawat, karyawan, dan mahasiswa sesuai dengan kepentingan diri sendiri","Tidak  Pernah",null,"Selalu"]
["D. Kompetensi Sosial"]
["No","Aspek yang dinilai","Penilaian"]
[17,"Kemampuan berkomunikasi lisan dan tulisan","Rendah",null,"Tinggi"]
[18,"Ketidaksiapan menerima kritik, saran, dan pendapat orang lain","Tidak Pernah",null,"Selalu"]
[19,"Pergaulan dengan teman sejawat, karyawan, mahasiswa dan masyarakat","Terbatas",null,"Luas"]
[20,"Toleran terhadap keberagaman mahasiswa dan sivitas akademika","Tidak Pernah",null,"Selalu"]

{"sheet":"Keterangan","index":11,"n_rows":13,"n_cols":15,"rows_kept":13,"cut":false,"hidden":false,"merged":[[0,0,0,14],[3,9,4,9],[3,10,4,10],[3,11,4,11],[2,6,2,11],[2,0,2,1],[2,3,2,4],[2,13,2,14],[3,6,3,8]]}
["TABEL KONVERSI NILAI"]
[]
["Kualifikasi Akademik dan Jabatan Akademik (NAP)",null,null,"Golongan Ruang Kepangkatan (NKP)",null,null,"Kemampuan Bahasa Inggris (NBI)",null,null,null,null,null,null,"Kemampuan Dasar Akademik (NPA)"]
["Kualifikasi","Konversi Skor",null,"Golongan Ruang","Konversi Skor",null,"TOEFL",null,null,"IELTS","TOEP","Konversi Skor",null,"Nilai TKDA","Konversi Skor"]
["S1 - ASISTEN AHLI",3,null,"III/a - Penata Muda",4,null,"Paper-based (PBT)","Computer-based (CBT)","Internet-based (iBT)",null,null,null,null,"< 25",1]
["S2 - ASISTEN AHLI",4,null,"III/b - Penata Muda Tingkat I",4,null,"< 394 ","< 91","< 30 ","< 4.0","< 26",1,null,"25 - 34",2]
["S3 - ASISTEN AHLI",5,null,"III/c - Penata",5,null,"397 – 433 ","93 – 120 ","30 – 40 ","4.0","26 – 35 ",2,null,"35 - 44",3]
["S1 - LEKTOR",4,null,"III/d - Penata Tingkat I",5,null,"437 – 473","123 – 150","41 – 52 ","4.5","36 – 45 ",3,null,"45 - 54",4]
["S2 - LEKTOR",5,null,"IV/a - Pembina",6,null,"477 – 510   ","153 – 180","53 – 64 ","5.0","46 – 55 ",4,null,"55 - 64",5]
["S3 - LEKTOR",6,null,"IV/b - Pembina Tingkat I",6,null,"513 - 547","183 – 210  ","65 – 78     ","5.5","56 – 65 ",5,null,"65 - 74",6]
["S1 - LEKTOR KEPALA",5,null,"IV/c - Pembina Utama Muda",6,null,"550 – 587 ","213 – 240 ","79 – 95 ","6.0","66 – 75 ",6,null,"> 74",7]
["S2 - LEKTOR KEPALA",6,null,"IV/d - Pembina Utama Madya",7,null,"≥ 590","≥ 243","≥ 96","≥ 6.5","≥ 76",7]
["S3 - LEKTOR KEPALA",7,null,"IV/e - Pembina Utama",7]